[Event "Slovakian-ch Youth 2022"]
[Site "Lubovna"]
[Date "2022.05.22"]
[Round "2.11"]
[White "Cedzo, Adam"]
[Black "Babjak, Samuel"]
[Result "1-0"]
[ECO "C13"]
[WhiteElo "1869"]
[BlackElo "1577"]
[Annotator "NA RC COMBH"]
[PlyCount "73"]
[EventDate "2022.05.22"]
[EventCountry "SVK"]
[SourceTitle "playchess.com"]
[Source "ChessBase"]
[SourceQuality "1"]
[TimeControl "40/5400+30:1800+30"]

1. e4 {[%emt 0:07:01]} e6 {[%emt 0:00:05]} 2. d4 {[%emt 0:00:15]} d5 {[%emt 0:00:05]} 3. Nc3 {[%emt 0:00:27]} Nf6 {[%emt 0:01:03]} 4. Bg5 {[%emt 0:00:11]} dxe4 {[%emt 0:00:26]} 5. Nxe4 {[%emt 0:00:07]} Be7 {[%emt 0:00:03]} 6. Nxf6+ {[%emt 0:00:15]} Bxf6 {[%emt 0:00:16]} 7. Bxf6 {[%emt 0:00:07]} Qxf6 {[%emt 0:00:08]} 8. Nf3 {[%emt 0:00:05]} b6 {[%emt 0:03:33]} 9. Qd3 {[%emt 0:00:55]} Bb7 {[%emt 0:02:22]} 10. Be2 {[%emt 0:02:01]} O-O {[%emt 0:01:37]} 11. h4 {[%emt 0:00:35]} Rd8 {[%emt 0:02:51]} 12. Qe3 {[%emt 0:02:46]} c5 {[%emt 0:06:35]} 13. O-O-O {[%emt 0:04:47]} Nd7 {[%emt 0:10:05]} 14. Rh3 {[%emt 0:03:37]} Rac8 {[%emt 0:06:12]} 15. Kb1 {[%emt 0:08:00]} cxd4 {[%emt 0:07:02]} 16. Rxd4 {[%emt 0:00:24]} e5 {[%emt 0:02:57]} 17. Rd2 {[%emt 0:02:38]} e4 {[%emt 0:08:18]} 18. Ng5 {[%emt 0:02:54]} Nc5 {[%emt 0:03:15]} 19. Bc4 {[%emt 0:04:15]} Rxd2 {[%emt 0:03:19]} 20. Qxd2 {[%emt 0:00:09]} Rc7 {[%emt 0:01:22]} 21. Ra3 {[%emt 0:24:44]} Rd7 {[%emt 0:04:40]} 22. Bxf7+ {[%emt 0:00:06]} Rxf7 {[%emt 0:00:19]} 23. Nxf7 {[%emt 0:00:04]} Qxf7 {[%emt 0:04:10]} 24. Rxa7 {[%emt 0:00:24]} Qd5 {[%emt 0:01:30]} 25. Kc1 {[%emt 0:03:33]} Qc6 {[%emt 0:06:55]} 26. Qc3 {[%emt 0:07:26]} Qh6+ {[%emt 0:02:12]} 27. Kd1 {[%emt 0:03:34]} Qxh4 {[%emt 0:01:30]} 28. b4 {[%emt 0:03:32]} Qh1+ {[%emt 0:01:45]} 29. Qe1 {[%emt 0:01:56]} Qh5+ {[%emt 0:01:03]} 30. Kc1 {[%emt 0:00:15]} Qg5+ {[%emt 0:01:14]} 31. Kb1 {[%emt 0:00:06]} Bd5 {[%emt 0:04:13]} 32. bxc5 {[%emt 0:00:28]} bxc5 {[%emt 0:00:08]} 33. Qe3 {[%emt 0:04:06]} Qh5 {[%emt 0:02:10]} 34. Ra5 {[%emt 0:01:02]} Qh1+ {[%emt 0:01:43]} 35. Kb2 {[%emt 0:01:42]} Qxg2 {[%emt 0:00:08]} 36. Qxc5 {[%emt 0:00:38]} Be6 {[%emt 0:02:29]} 37. Qe7 {[%emt 0:01:12]} 1-0

[Event "Slovakian-ch Youth 2022"]
[Site "Lubovna"]
[Date "2022.05.22"]
[Round "2.11"]
[White "Kurimsky, Kristian"]
[Black "Kudela, Oliver"]
[Result "1-0"]
[ECO "B20"]
[WhiteElo "1006"]
[BlackElo "1344"]
[Annotator "NA COMBH"]
[PlyCount "60"]
[EventDate "2022.05.22"]
[EventCountry "SVK"]
[SourceTitle "playchess.com"]
[Source "ChessBase"]
[SourceQuality "1"]
[TimeControl "40/5400+30:1800+30"]

1. e4 {[%emt 0:00:02]} c5 {[%emt 0:00:02]} 2. Bc4 {[%emt 0:00:12]} e6 {[%emt 0:00:54]} 3. d3 {[%emt 0:01:09]} Nc6 {[%emt 0:01:12]} 4. Nf3 {[%emt 0:01:18]} d6 {[%emt 0:00:47]} 5. Nc3 {[%emt 0:03:16]} a6 {[%emt 0:00:59]} 6. a3 {[%emt 0:02:56]} g6 {[%emt 0:01:58]} 7. d4 {[%emt 0:04:22]} cxd4 {[%emt 0:00:46]} 8. Nxd4 {[%emt 0:00:18]} Bd7 {[%emt 0:01:26]} 9. Be3 {[%emt 0:07:43]} Bg7 {[%emt 0:00:58]} 10. Nxc6 {[%emt 0:01:26]} Bxc6 {[%emt 0:00:20]} 11. f3 {[%emt 0:04:48]} Ne7 {[%emt 0:03:39]} 12. Qd2 {[%emt 0:01:31]} Rc8 {[%emt 0:05:41]} 13. Bh6 {[%emt 0:02:49]} Bxh6 {[%emt 0:08:29]} 14. Qxh6 {[%emt 0:01:22]} Bxe4 {[%emt 0:01:00]} 15. Nxe4 {[%emt 0:01:37]} Nf5 {[%emt 0:01:00]} 16. Qd2 {[%emt 0:04:01]} Rxc4 {[%emt 0:01:09]} 17. g4 {[%emt 0:00:10]} Nd4 {[%emt 0:01:55]} 18. Qd3 {[%emt 0:05:13]} Nxc2+ {[%emt 0:04:55]} 19. Ke2 {[%emt 0:00:33]} d5 {[%emt 0:02:13]} 20. Rac1 {[%emt 0:03:11]} Qc7 {[%emt 0:03:11]} 21. b3 {[%emt 0:03:19]} Nd4+ {[%emt 0:02:43]} 22. Qxd4 {[%emt 0:00:55]} e5 {[%emt 0:01:37]} 23. Rxc4 {[%emt 0:03:27]} dxc4 {[%emt 0:03:56]} 24. Nd6+ {[%emt 0:04:29]} Kd7 {[%emt 0:01:20]} 25. Qxe5 {[%emt 0:01:31]} Qb8 {[%emt 0:02:29]} 26. Rd1 {[%emt 0:01:38]} Kc6 {[%emt 0:00:47]} 27. Qd5+ {[%emt 0:00:57]} Kb6 {[%emt 0:01:55]} 28. Qd4+ {[%emt 0:01:50]} Kc6 {[%emt 0:01:00]} 29. Qxc4+ {[%emt 0:00:40]} Kb6 {[%emt 0:00:33]} 30. Qd4+ {[%emt 0:00:46]} Ka5 {[%emt 0:01:25]} 1-0

[Event "Slovakian-ch Youth 2022"]
[Site "Lubovna"]
[Date "2022.05.22"]
[Round "2.12"]
[White "Vida, Gergo"]
[Black "Gourlay, Martin B"]
[Result "0-1"]
[ECO "D11"]
[WhiteElo "1821"]
[BlackElo "1911"]
[Annotator "TA"]
[PlyCount "72"]
[EventDate "2022.05.22"]
[EventCountry "SVK"]
[SourceTitle "playchess.com"]
[Source "ChessBase"]
[SourceQuality "1"]
[TimeControl "40/5400+30:1800+30"]

{[%evp 9,72,39,47,35,32,20,43,31,36,-5,6,-107,-119,-124,-113,-134,-126,-148,-83,-66,-71,-89,38,-130,-11,-9,-12,-61,-77,-193,-173,-421,-439,-29984,-29985,-2970,-1021,-1004,-539,-521,-532,-525,-472,-494,-471,-778,-769,-771,-764,-748,-722,-728,-727,-725,-719,-717,-662,-831,-804,-710,-704,-693,-657,-574,-531]} 1. d4 {[%emt 0:00:21]} c6 {[%emt 0:00:17]} 2. c4 {[%emt 0:00:19]} d5 {[%emt 0:00:55]} 3. Nf3 {[%emt 0:00:30]} Nf6 {[%emt 0:00:53][%cal Bg8f6,Bf6e4,Be4d2][%mdl 32]} 4. Bg5 {[%emt 0:01:33]} g6 {[%emt 0:00:41]} 5. e3 {[%emt 0:00:30]} Ne4 {[%emt 0:01:47]} 6. Bh4 {[%emt 0:02:51] D11: Slav Defence: 3 Nf3 sidelines and 3...Nf6 4 e3 Bg4.} Bg7 {[%emt 0:02:12]} 7. Nbd2 {[%emt 0:01:25] [#]} Nxd2 $146 {[%emt 0:06:43]} ({Predecessor:} 7... Bg4 8. Be2 h6 9. cxd5 cxd5 10. Qb3 Nxd2 11. Nxd2 Bxe2 12. Kxe2 Qd7 13. h3 O-O {0-1 (24) Rozo Pulido,C (1456)-Velasco,L (1819) Ibague 2013}) 8. Qxd2 {[%emt 0:00:35] White is slightly better.} Bg4 {[%emt 0:00:50]} 9. Qd1 {[%emt 0:02:21]} Bxf3 {[%emt 0:02:28]} 10. Qxf3 {[%emt 0:00:22]} (10. gxf3 $11 Nd7 11. Qb3) 10... Qa5+ $17 {[%emt 0:00:03]} 11. Kd1 {[%emt 0:01:09]} O-O {[%emt 0:02:06]} 12. Bxe7 {[%emt 0:04:51]} Re8 {[%emt 0:00:10]} 13. Bf6 {[%emt 0:02:38]} Nd7 {[%emt 0:00:33]} (13... Bxf6 $142 14. Qxf6 c5) 14. Bxg7 {[%emt 0:00:45]} Kxg7 {[%emt 0:00:02]} 15. Bd3 {[%emt 0:06:18]} Rad8 {[%emt 0:01:06]} ({Better is} 15... c5 $1 $17 16. a3 (16. Qxd5 Rad8 $15) (16. cxd5 cxd4 17. e4 Rac8 $17) 16... cxd4 17. Qxd5 Qxd5 18. cxd5 dxe3) 16. Ke2 $2 {[%emt 0:02:56] [#]} (16. c5 $1 $14 {keeps the upper hand.}) 16... Nf6 {[%emt 0:01:37]} (16... c5 $1 $17 {[%cal Rc5d4] White must now prevent ...cxd4.} 17. Kf1 (17. Qxd5 $2 Qb6 $19) (17. cxd5 cxd4 18. Rhd1 Ne5 $19) 17... Qb6 18. cxd5 cxd4) 17. Rhc1 $1 $11 {[%emt 0:01:09]} c5 $36 {[%emt 0:00:47][%mdl 2048] Black is pushing.} 18. dxc5 {[%emt 0:05:57]} (18. cxd5 cxd4 19. b4 Qb6 $17) (18. Kf1 $1 $11) 18... d4 $1 $15 {[%emt 0:02:12][%cal Bd5d4,Bd4e3,Be3e2][%mdl 32] Black is more active.} ({Much worse is} 18... dxc4 19. Bxc4 Rd2+ 20. Kf1 $11) 19. a3 {[%emt 0:11:16] Black keeps a firm grip on the game.} ({Don't blunder} 19. Kf1 $2 dxe3 20. Be2 Ne4 $19) (19. e4 $17 {was worth a try.}) 19... Qxc5 $19 {[%emt 0:02:05]} ({Inferior is} 19... dxe3 20. fxe3 Qxc5 21. Rc3 $17) 20. Kf1 $2 {[%emt 0:07:43]} (20. b4 Qe5 21. e4) 20... dxe3 {[%emt 0:01:43]} 21. Bb1 {[%emt 0:03:22]} (21. Rd1 $19 exf2 22. Qxf2) 21... e2+ {[%emt 0:03:02]} 22. Ke1 {[%emt 0:01:41] [#]} Qd4 {[%emt 0:03:14]} (22... Ng4 $142 $1 {[%mdl 512]} 23. Bd3 (23. Be4 Rxe4) 23... Ne5 24. Be4 Nxf3+ 25. Bxf3 Rd1+ 26. Rxd1 exd1=N+ 27. Kxd1 Qxf2 28. Kc1 Re1+ 29. Bd1 Qe2 30. Kb1 Rxd1+ 31. Ka2 Qxc4+ 32. b3 Qe2#) 23. Bd3 {[%emt 0:03:52]} Qxd3 {[%emt 0:00:37]} 24. Qxd3 {[%emt 0:00:22]} Rxd3 {[%emt 0:00:04]} 25. Rc2 {[%emt 0:00:14]} Rb3 {[%emt 0:02:08]} 26. Rb1 {[%emt 0:00:23]} Nd7 {[%emt 0:01:50]} 27. Rd2 {[%emt 0:08:34]} (27. Rxe2 $142 Rxe2+ 28. Kxe2) 27... Nc5 {[%emt 0:01:40] Threatens to win with ...Nd3+.} 28. Rxe2 {[%emt 0:01:09]} Nd3+ {[%emt 0:01:14]} 29. Kd2 {[%emt 0:02:02]} Rxe2+ {[%emt 0:00:07]} 30. Kxe2 {[%emt 0:00:12]} Rxb2+ {[%emt 0:00:17]} 31. Rxb2 {[%emt 0:00:07]} Nxb2 {[%emt 0:00:29] KN-KP} 32. c5 {[%emt 0:00:20]} Na4 {[%emt 0:00:17]} 33. c6 {[%emt 0:00:19]} bxc6 {[%emt 0:00:06]} 34. Kd3 {[%emt 0:00:14]} Nb6 {[%emt 0:00:23]} 35. Kd4 {[%emt 0:00:40]} Nc8 {[%emt 0:01:26]} 36. Kc5 {[%emt 0:00:30]} Ne7 {[%emt 0:01:10] Weighted Error Value: White=0.84/Black=0.44} 0-1

[Event "Slovakian-ch Youth 2022"]
[Site "Lubovna"]
[Date "2022.05.22"]
[Round "2.12"]
[White "Mederly, Jan"]
[Black "Kostelansky, Karol"]
[Result "1-0"]
[ECO "A80"]
[WhiteElo "1446"]
[BlackElo "1821"]
[Annotator "NA RC COMBH"]
[PlyCount "89"]
[EventDate "2022.05.22"]
[EventCountry "SVK"]
[SourceTitle "playchess.com"]
[Source "ChessBase"]
[SourceQuality "1"]
[TimeControl "40/5400+30:1800+30"]

1. d4 {[%emt 0:02:10]} f5 {[%emt 0:00:35]} 2. Nc3 {[%emt 0:00:09]} Nf6 {[%emt 0:00:19]} 3. Bf4 {[%emt 0:00:08]} e6 {[%emt 0:01:17]} 4. g4 {[%emt 0:00:14]} Nxg4 {[%emt 0:05:35]} 5. e4 {[%emt 0:00:11]} c6 {[%emt 0:13:15]} 6. Qf3 {[%emt 0:15:56]} d5 {[%emt 0:06:37]} 7. exf5 {[%emt 0:05:46]} exf5 {[%emt 0:00:39]} 8. O-O-O {[%emt 0:00:31]} Be7 {[%emt 0:01:18]} 9. Qg3 {[%emt 0:17:19]} Bh4 {[%emt 0:06:22]} 10. Qg2 {[%emt 0:09:39]} O-O {[%emt 0:03:17]} 11. Nh3 {[%emt 0:03:39]} Re8 {[%emt 0:16:22]} 12. Rg1 {[%emt 0:03:08]} Bf6 {[%emt 0:04:13]} 13. Ne2 {[%emt 0:10:28]} Qb6 {[%emt 0:06:17]} 14. Bg5 {[%emt 0:07:55]} Qd8 {[%emt 0:09:14]} 15. Bf4 {[%emt 0:03:38]} Na6 {[%emt 0:07:05]} 16. a3 {[%emt 0:01:51]} b5 {[%emt 0:01:16]} 17. Rd3 {[%emt 0:01:09]} Qa5 {[%emt 0:02:33]} 18. f3 {[%emt 0:00:46]} Ne3 {[%emt 0:01:37]} 19. Bxe3 {[%emt 0:00:14]} Rxe3 {[%emt 0:00:08]} 20. b4 {[%emt 0:00:04]} Nxb4 {[%emt 0:04:29]} 21. Rxe3 {[%emt 0:01:30]} Na2+ {[%emt 0:01:38]} 22. Kb1 {[%emt 0:05:58]} b4 {[%emt 0:02:21]} 23. Kxa2 {[%emt 0:04:37]} bxa3 {[%emt 0:00:38]} 24. Rb3 {[%emt 0:01:25]} c5 {[%emt 0:00:55]} 25. dxc5 {[%emt 0:01:32]} Qe1 {[%emt 0:01:35]} 26. Rb1 {[%emt 0:01:08]} Qa5 {[%emt 0:01:50]} 27. Nc1 {[%emt 0:00:48]} Be6 {[%emt 0:00:30]} 28. Nf4 {[%emt 0:00:35]} Bf7 {[%emt 0:00:15]} 29. Nb3 {[%emt 0:00:25]} Qa4 {[%emt 0:01:23]} 30. Nh5 {[%emt 0:00:18]} Bxh5 {[%emt 0:00:16]} 31. f4 {[%emt 0:00:22]} Bf7 {[%emt 0:00:14]} 32. Bd3 {[%emt 0:00:41]} Rb8 {[%emt 0:01:19]} 33. Qd2 {[%emt 0:00:38]} d4 {[%emt 0:00:34]} 34. Rgc1 {[%emt 0:01:10]} g6 {[%emt 0:00:56]} 35. h4 {[%emt 0:00:37]} Bxh4 {[%emt 0:00:00]} 36. Rh1 {[%emt 0:00:30]} Be7 {[%emt 0:00:02]} 37. Qh2 {[%emt 0:00:30]} h5 {[%emt 0:00:30]} 38. Rbg1 {[%emt 0:00:30]} Kf8 {[%emt 0:00:30]} 39. Re1 {[%emt 0:00:30]} Bxc5 {[%emt 0:00:30]} 40. Qe2 {[%emt 0:00:30]} Bb4 {[%emt 0:00:30]} 41. Qe5 {[%emt 0:00:33]} Bxe1 {[%emt 0:03:26]} 42. Qxb8+ {[%emt 0:31:48]} Kg7 {[%emt 0:29:10]} 43. Qe5+ {[%emt 0:00:30]} Kh7 {[%emt 0:00:30]} 44. Rxe1 {[%emt 0:00:30]} Qb4 {[%emt 0:00:30]} 45. Qe7 {[%emt 0:00:30]} 1-0

[Event "Slovakian-ch Youth 2022"]
[Site "Lubovna"]
[Date "2022.05.22"]
[Round "2.13"]
[White "Kuna, Patrik"]
[Black "Chovanec, Adrian"]
[Result "1-0"]
[ECO "C29"]
[WhiteElo "1811"]
[BlackElo "1498"]
[Annotator "NA RC COMBH"]
[PlyCount "57"]
[EventDate "2022.05.22"]
[EventCountry "SVK"]
[SourceTitle "playchess.com"]
[Source "ChessBase"]
[SourceQuality "1"]
[TimeControl "40/5400+30:1800+30"]

1. e4 {[%emt 0:00:04]} e5 {[%emt 0:00:03]} 2. Nc3 {[%emt 0:00:31]} Nf6 {[%emt 0:00:26]} 3. f4 {[%emt 0:00:07]} Bd6 {[%emt 0:00:51]} 4. Nf3 {[%emt 0:00:16]} exf4 {[%emt 0:01:37]} 5. d4 {[%emt 0:00:06]} Bb4 {[%emt 0:02:46]} 6. Bd3 {[%emt 0:00:43]} Bxc3+ {[%emt 0:02:09]} 7. bxc3 {[%emt 0:00:06]} O-O {[%emt 0:01:45]} 8. O-O {[%emt 0:00:21]} d5 {[%emt 0:03:00]} 9. e5 {[%emt 0:01:37]} Nh5 {[%emt 0:01:59]} 10. Ne1 {[%emt 0:24:43]} g6 {[%emt 0:16:34]} 11. Be2 {[%emt 0:04:59]} Ng7 {[%emt 0:07:53]} 12. Bxf4 {[%emt 0:00:50]} a6 {[%emt 0:06:51]} 13. Nf3 {[%emt 0:00:57]} f6 {[%emt 0:05:46]} 14. Qd2 {[%emt 0:09:25]} Nc6 {[%emt 0:04:05]} 15. exf6 {[%emt 0:20:53]} Ne6 {[%emt 0:11:46]} 16. Be5 {[%emt 0:03:49]} Nxe5 {[%emt 0:01:11]} 17. dxe5 {[%emt 0:00:03]} c5 {[%emt 0:10:58]} 18. Rad1 {[%emt 0:01:07]} d4 {[%emt 0:01:27]} 19. cxd4 {[%emt 0:00:32]} cxd4 {[%emt 0:01:00]} 20. Nxd4 {[%emt 0:00:42]} Nxd4 {[%emt 0:01:15]} 21. Qxd4 {[%emt 0:00:11]} Qxd4+ {[%emt 0:00:13]} 22. Rxd4 {[%emt 0:00:04]} Be6 {[%emt 0:00:38]} 23. Bc4 {[%emt 0:02:55]} Bxc4 {[%emt 0:00:22]} 24. Rxc4 {[%emt 0:00:06]} Rac8 {[%emt 0:00:16]} 25. Rxc8 {[%emt 0:01:29]} Rxc8 {[%emt 0:00:07]} 26. e6 {[%emt 0:00:09]} Kf8 {[%emt 0:00:47]} 27. Rf2 {[%emt 0:00:16]} Re8 {[%emt 0:02:30]} 28. Re2 {[%emt 0:00:37]} Rc8 {[%emt 0:00:48]} 29. Kf2 {[%emt 0:00:08]} 1-0

[Event "Slovakian-ch Youth 2022"]
[Site "Lubovna"]
[Date "2022.05.22"]
[Round "2.13"]
[White "Horvath, Simon"]
[Black "Ammer, Erik"]
[Result "0-1"]
[ECO "C64"]
[WhiteElo "1343"]
[BlackElo "1320"]
[Annotator "NA COMBH"]
[PlyCount "96"]
[EventDate "2022.05.22"]
[EventCountry "SVK"]
[SourceTitle "playchess.com"]
[Source "ChessBase"]
[SourceQuality "1"]
[TimeControl "40/5400+30:1800+30"]

1. e4 {[%emt 0:01:17]} e5 {[%emt 0:00:04]} 2. Nf3 {[%emt 0:00:38]} Nc6 {[%emt 0:00:05]} 3. Bb5 {[%emt 0:00:48]} Bc5 {[%emt 0:00:25]} 4. O-O {[%emt 0:02:38]} d6 {[%emt 0:00:49]} 5. Nc3 {[%emt 0:01:10]} Nf6 {[%emt 0:00:13]} 6. d3 {[%emt 0:01:01]} Bg4 {[%emt 0:00:12]} 7. h3 {[%emt 0:00:30]} Bh5 {[%emt 0:00:07]} 8. Bg5 {[%emt 0:01:24]} h6 {[%emt 0:00:40]} 9. Bxf6 {[%emt 0:00:43]} Qxf6 {[%emt 0:00:08]} 10. Nd5 {[%emt 0:05:28]} Qd8 {[%emt 0:00:21]} 11. c4 {[%emt 0:09:17]} O-O {[%emt 0:00:18]} 12. Bxc6 {[%emt 0:03:10]} bxc6 {[%emt 0:00:15]} 13. Nc3 {[%emt 0:01:16]} Qd7 {[%emt 0:01:20]} 14. Qe2 {[%emt 0:03:49]} f5 {[%emt 0:00:14]} 15. exf5 {[%emt 0:01:14]} Qxf5 {[%emt 0:00:18]} 16. Qe4 {[%emt 0:00:41]} Bxf3 {[%emt 0:00:48]} 17. Qxf3 {[%emt 0:00:57]} Qxf3 {[%emt 0:00:05]} 18. gxf3 {[%emt 0:00:36]} Rxf3 {[%emt 0:00:06]} 19. Kg2 {[%emt 0:06:07]} Rxd3 {[%emt 0:01:15]} 20. Rad1 {[%emt 0:01:20]} Rxd1 {[%emt 0:00:14]} 21. Rxd1 {[%emt 0:00:57]} Rf8 {[%emt 0:00:21]} 22. Ne4 {[%emt 0:00:31]} Bd4 {[%emt 0:01:43]} 23. Rd3 {[%emt 0:01:26]} d5 {[%emt 0:00:26]} 24. cxd5 {[%emt 0:01:18]} cxd5 {[%emt 0:00:24]} 25. Nc3 {[%emt 0:01:22]} Rxf2+ {[%emt 0:00:33]} 26. Kg3 {[%emt 0:00:52]} Rxb2 {[%emt 0:00:11]} 27. Nxd5 {[%emt 0:00:35]} Rxa2 {[%emt 0:00:39]} 28. Nxc7 {[%emt 0:00:11]} a5 {[%emt 0:00:09]} 29. Nb5 {[%emt 0:01:00]} Bb2 {[%emt 0:01:11]} 30. Rd2 {[%emt 0:01:45]} e4 {[%emt 0:00:45]} 31. Nc3 {[%emt 0:01:37]} Ra3 {[%emt 0:01:28]} 32. Kf4 {[%emt 0:01:59]} Bxc3 {[%emt 0:00:27]} 33. Rd1 {[%emt 0:00:33]} Ra1 {[%emt 0:00:23]} 34. Rd5 {[%emt 0:02:46]} a4 {[%emt 0:00:52]} 35. Kf5 {[%emt 0:01:17]} a3 {[%emt 0:00:49]} 36. Kg6 {[%emt 0:00:13]} Rg1+ {[%emt 0:00:07]} 37. Kh5 {[%emt 0:01:14]} Rg5+ {[%emt 0:00:14]} 38. Rxg5 {[%emt 0:01:25]} hxg5 {[%emt 0:00:05]} 39. Kxg5 {[%emt 0:00:14]} a2 {[%emt 0:00:07]} 40. Kf4 {[%emt 0:00:47]} a1=Q {[%emt 0:00:13]} 41. Kxe4 {[%emt 0:30:22]} Qa4+ {[%emt 0:30:28]} 42. Kf3 {[%emt 0:00:15]} Qd4 {[%emt 0:00:30]} 43. Kg3 {[%emt 0:00:30]} Bd2 {[%emt 0:00:07]} 44. Kg2 {[%emt 0:00:26]} Qe3 {[%emt 0:00:19]} 45. Kh2 {[%emt 0:00:26]} Be1 {[%emt 0:00:05]} 46. Kh1 {[%emt 0:01:30]} Qg3 {[%emt 0:00:25]} 47. h4 {[%emt 0:00:38]} Bf2 {[%emt 0:00:02]} 48. h5 {[%emt 0:00:31]} Qg1# {[%emt 0:00:02]} 0-1

[Event "Slovakian-ch Youth 2022"]
[Site "Lubovna"]
[Date "2022.05.22"]
[Round "2.14"]
[White "Rybiansky, Jergus"]
[Black "Bidulsky, Matej"]
[Result "0-1"]
[ECO "D00"]
[WhiteElo "1379"]
[BlackElo "1800"]
[Annotator "NA RC COMBH"]
[PlyCount "90"]
[EventDate "2022.05.22"]
[EventCountry "SVK"]
[SourceTitle "playchess.com"]
[Source "ChessBase"]
[SourceQuality "1"]
[TimeControl "40/5400+30:1800+30"]

1. d4 {[%emt 0:00:14]} c5 {[%emt 0:00:22]} 2. c3 {[%emt 0:01:55]} d5 {[%emt 0:00:15]} 3. Bf4 {[%emt 0:00:34]} Nc6 {[%emt 0:00:14]} 4. e3 {[%emt 0:00:31]} Nf6 {[%emt 0:03:51]} 5. Bd3 {[%emt 0:02:29]} Bg4 {[%emt 0:00:49]} 6. Nf3 {[%emt 0:09:37]} Nh5 {[%emt 0:02:25]} 7. Bg3 {[%emt 0:01:07]} Qb6 {[%emt 0:03:45]} 8. Qb3 {[%emt 0:20:57]} c4 {[%emt 0:01:01]} 9. Qxb6 {[%emt 0:00:12]} axb6 {[%emt 0:00:02]} 10. Be2 {[%emt 0:00:48]} Nxg3 {[%emt 0:00:09]} 11. hxg3 {[%emt 0:00:11]} b5 {[%emt 0:01:03]} 12. Nbd2 {[%emt 0:03:34]} b4 {[%emt 0:01:29]} 13. e4 {[%emt 0:00:38]} e6 {[%emt 0:00:11]} 14. Rh4 {[%emt 0:01:26]} h5 {[%emt 0:00:48]} 15. Ng1 {[%emt 0:13:42]} Bxe2 {[%emt 0:00:56]} 16. Nxe2 {[%emt 0:00:09]} b5 {[%emt 0:00:03]} 17. exd5 {[%emt 0:01:06]} exd5 {[%emt 0:00:11]} 18. Nf4 {[%emt 0:00:16]} g5 {[%emt 0:02:13]} 19. Rxh5 {[%emt 0:00:14]} Rxh5 {[%emt 0:00:07]} 20. Nxh5 {[%emt 0:00:07]} Be7 {[%emt 0:01:15]} 21. Ng7+ {[%emt 0:04:24]} Kd7 {[%emt 0:00:50]} 22. Nf5 {[%emt 0:02:33]} Bf6 {[%emt 0:01:55]} 23. f4 {[%emt 0:10:38]} bxc3 {[%emt 0:01:06]} 24. bxc3 {[%emt 0:00:52]} b4 {[%emt 0:00:05]} 25. fxg5 {[%emt 0:05:04]} bxc3 {[%emt 0:03:28]} 26. gxf6 {[%emt 0:04:06]} c2 {[%emt 0:01:20]} 27. Nxc4 {[%emt 0:05:00]} dxc4 {[%emt 0:00:19]} 28. Kd2 {[%emt 0:00:16]} Ke6 {[%emt 0:03:08]} 29. d5+ {[%emt 0:01:03]} Kxd5 {[%emt 0:01:19]} 30. Ne3+ {[%emt 0:00:08]} Kc5 {[%emt 0:00:05]} 31. Nxc2 {[%emt 0:00:14]} Nd4 {[%emt 0:00:06]} 32. g4 {[%emt 0:10:02]} Re8 {[%emt 0:00:45]} 33. Nxd4 {[%emt 0:00:45]} Kxd4 {[%emt 0:00:05]} 34. Rb1 {[%emt 0:00:48]} c3+ {[%emt 0:00:08]} 35. Kc2 {[%emt 0:00:11]} Re2+ {[%emt 0:00:05]} 36. Kb3 {[%emt 0:00:37]} c2 {[%emt 0:00:22]} 37. Rc1 {[%emt 0:00:16]} Kd3 {[%emt 0:00:06]} 38. a4 {[%emt 0:00:22]} Re8 {[%emt 0:00:18]} 39. a5 {[%emt 0:00:45]} Rb8+ {[%emt 0:00:09]} 40. Ka2 {[%emt 0:00:19]} Ra8 {[%emt 0:00:10]} 41. Kb2 {[%emt 0:32:06]} Rb8+ {[%emt 0:30:11]} 42. Ka2 {[%emt 0:00:13]} Kd2 {[%emt 0:00:04]} 43. Rh1 {[%emt 0:00:59]} Rb5 {[%emt 0:00:36]} 44. Rh5 {[%emt 0:00:15]} Rxh5 {[%emt 0:00:31]} 45. gxh5 {[%emt 0:00:06]} Kc3 {[%emt 0:00:28]} 0-1

[Event "Slovakian-ch Youth 2022"]
[Site "Lubovna"]
[Date "2022.05.22"]
[Round "2.14"]
[White "Hasala, Richard"]
[Black "Kakus, Oliver"]
[Result "1-0"]
[ECO "B00"]
[WhiteElo "1318"]
[BlackElo "1000"]
[Annotator "NA RC COMBH"]
[PlyCount "79"]
[EventDate "2022.05.22"]
[EventCountry "SVK"]
[SourceTitle "playchess.com"]
[Source "ChessBase"]
[SourceQuality "1"]
[TimeControl "40/5400+30:1800+30"]

1. e4 {[%emt 0:00:30]} d6 {[%emt 0:00:30]} 2. d4 {[%emt 0:00:30]} e5 {[%emt 0:00:30]} 3. dxe5 {[%emt 0:00:30]} dxe5 {[%emt 0:00:30]} 4. Qxd8+ {[%emt 0:00:30]} Kxd8 {[%emt 0:00:30]} 5. Nf3 {[%emt 0:00:30]} Nc6 6. Bb5 Bg4 {[%emt 0:01:01]} 7. Bxc6 {[%emt 0:00:49]} bxc6 {[%emt 0:00:28]} 8. Nxe5 {[%emt 0:00:12]} Be6 {[%emt 0:00:28]} 9. Nxc6+ {[%emt 0:00:27]} Kd7 {[%emt 0:00:32]} 10. Nd4 {[%emt 0:00:29]} Bb4+ {[%emt 0:00:15]} 11. c3 {[%emt 0:00:13]} Ba5 {[%emt 0:00:15]} 12. O-O {[%emt 0:00:14]} Bb6 {[%emt 0:00:13]} 13. Rd1 {[%emt 0:00:35]} Bxd4 {[%emt 0:00:36]} 14. cxd4 {[%emt 0:00:16]} Rd8 {[%emt 0:00:13]} 15. Nc3 {[%emt 0:01:14]} Nf6 {[%emt 0:00:29]} 16. Bg5 {[%emt 0:00:23]} h6 {[%emt 0:00:21]} 17. Bh4 {[%emt 0:00:43]} g5 {[%emt 0:00:15]} 18. Bg3 {[%emt 0:00:01]} Bg4 {[%emt 0:00:12]} 19. f3 {[%emt 0:00:15]} Bh5 {[%emt 0:00:34]} 20. Be5 {[%emt 0:00:22]} Ke6 {[%emt 0:00:15]} 21. Nd5 {[%emt 0:01:24]} g4 {[%emt 0:00:26]} 22. Bxf6 {[%emt 0:00:13]} Rxd5 {[%emt 0:00:23]} 23. Bxh8 {[%emt 0:00:16]} Rg5 {[%emt 0:00:21]} 24. f4 {[%emt 0:00:48]} Rg8 {[%emt 0:00:12]} 25. f5+ {[%emt 0:00:07]} Kd6 {[%emt 0:00:30]} 26. Be5+ {[%emt 0:00:13]} Ke7 {[%emt 0:00:16]} 27. Rac1 {[%emt 0:00:28]} c6 {[%emt 0:00:33]} 28. Rxc6 {[%emt 0:00:12]} g3 {[%emt 0:00:10]} 29. Rc7+ Kf8 {[%emt 0:00:39]} 30. Rc8+ {[%emt 0:00:18]} Ke7 {[%emt 0:00:40]} 31. Rxg8 {[%emt 0:00:13]} Bxd1 {[%emt 0:00:05]} 32. f6+ {[%emt 0:00:38]} Ke6 {[%emt 0:00:28]} 33. Re8+ {[%emt 0:00:09]} Kd7 {[%emt 0:00:19]} 34. Re7+ {[%emt 0:00:06]} Kd8 {[%emt 0:00:17]} 35. Rxf7 {[%emt 0:00:15]} Ke8 {[%emt 0:00:14]} 36. Rxa7 {[%emt 0:00:24]} Ba4 {[%emt 0:00:30]} 37. f7+ {[%emt 0:00:11]} Kd8 {[%emt 0:01:54]} 38. f8=Q+ {[%emt 0:00:11]} Be8 {[%emt 0:00:20]} 39. Bf6+ {[%emt 0:00:22]} Kc8 {[%emt 0:00:27]} 40. Qxe8# {[%emt 0:00:10]} 1-0